[Event "Titled Tuesday Blitz September 20 Late 2022"]
[White "Lenderman, Aleksandr"]
[Black "Gilmanov, Mansur"]
[WhiteFideId "2021285"]
[BlackFideId "4166868"]
[WhiteElo "2607"]
[BlackElo "2377"]
[Result "1-0"]
[Round "01"]
[TimeControl "180+1"]
[Date "2022.09.20"]
[WhiteClock "0:02:08"]
[BlackClock "0:00:03"]

1. e4 {[%clk 0:03:00]}  d5 {[%clk 0:02:59]} 2. exd5 {[%clk 0:02:58]}  Qxd5 {[%clk 0:03:00]} 3. Nf3 {[%clk 0:02:58]}  Nf6 {[%clk 0:02:51]} 4. d4 {[%clk 0:02:57]}  Bg4 {[%clk 0:02:46]} 5. Be2 {[%clk 0:02:57]}  Nc6 {[%clk 0:02:36]} 6. h3 {[%clk 0:02:55]}  Bxf3 {[%clk 0:02:25]} 7. Bxf3 {[%clk 0:02:55]}  Qe6+ {[%clk 0:02:26]} 8. Be3 {[%clk 0:02:52]}  O-O-O {[%clk 0:02:26]} 9. O-O {[%clk 0:02:49]}  Nxd4 {[%clk 0:01:59]} 10. Bxd4 {[%clk 0:02:47]}  c5 {[%clk 0:01:57]} 11. Re1 {[%clk 0:02:28]}  Qb6 {[%clk 0:01:43]} 12. Nd2 {[%clk 0:02:27]}  Rxd4 {[%clk 0:01:27]} 13. c3 {[%clk 0:02:27]}  Rd8 {[%clk 0:01:20]} 14. Nc4 {[%clk 0:02:24]}  Qc7 {[%clk 0:01:15]} 15. Qa4 {[%clk 0:02:23]}  Kb8 {[%clk 0:00:59]} 16. Na5 {[%clk 0:02:15]}  Nd5 {[%clk 0:00:31]} 17. c4 {[%clk 0:02:13]}  Nb6 {[%clk 0:00:27]} 18. Qb3 {[%clk 0:02:14]}  Qf4 {[%clk 0:00:08]} 19. Nxb7 {[%clk 0:02:13]}  Rd4 {[%clk 0:00:05]} 20. Nxc5 {[%clk 0:02:13]}  Rxc4 {[%clk 0:00:05]} 21. Nd7+ {[%clk 0:02:11]}  Kc7 {[%clk 0:00:05]} 22. Nxb6 {[%clk 0:02:12]}  axb6 {[%clk 0:00:05]} 23. g3 {[%clk 0:02:08]}  Qd4 {[%clk 0:00:02]} 24. Re4 {[%clk 0:02:08]}  Qc5 {[%clk 0:00:03]} 25. Rxc4 {[%clk 0:02:08]} 1-0


[Site "https://www.chess.com"]

[Event "Titled Tuesday Blitz September 20 Late 2022"]
[White "Maksimovic, Bojan"]
[Black "Goncalves, Davi Sulzbacher"]
[WhiteFideId "14408120"]
[BlackFideId "2154510"]
[WhiteElo "2447"]
[BlackElo "2107"]
[Result "1-0"]
[Round "01"]
[TimeControl "180+1"]
[Date "2022.09.20"]
[WhiteClock "0:01:07"]
[BlackClock "0:00:04"]

1. e4 {[%clk 0:03:00]}  c5 {[%clk 0:02:59]} 2. Nf3 {[%clk 0:03:00]}  Nc6 {[%clk 0:03:00]} 3. Bb5 {[%clk 0:03:00]}  g6 {[%clk 0:03:00]} 4. O-O {[%clk 0:03:00]}  Bg7 {[%clk 0:03:00]} 5. c3 {[%clk 0:03:00]}  Nf6 {[%clk 0:03:00]} 6. Re1 {[%clk 0:03:01]}  O-O {[%clk 0:03:00]} 7. d4 {[%clk 0:03:01]}  d5 {[%clk 0:02:59]} 8. e5 {[%clk 0:03:01]}  Ne4 {[%clk 0:02:59]} 9. Bxc6 {[%clk 0:03:02]}  bxc6 {[%clk 0:02:59]} 10. Be3 {[%clk 0:03:03]}  Rb8 {[%clk 0:02:59]} 11. Qc1 {[%clk 0:03:01]}  cxd4 {[%clk 0:02:44]} 12. cxd4 {[%clk 0:03:00]}  Bf5 {[%clk 0:02:44]} 13. Nc3 {[%clk 0:02:52]}  Qb6 {[%clk 0:02:36]} 14. b3 {[%clk 0:02:50]}  Qa6 {[%clk 0:02:21]} 15. Na4 {[%clk 0:02:43]}  f6 {[%clk 0:02:08]} 16. exf6 {[%clk 0:02:39]}  Bxf6 {[%clk 0:02:05]} 17. Nd2 {[%clk 0:02:27]}  Nxd2 {[%clk 0:01:31]} 18. Qxd2 {[%clk 0:02:28]}  Qd3 {[%clk 0:01:28]} 19. Qxd3 {[%clk 0:02:22]}  Bxd3 {[%clk 0:01:28]} 20. Rac1 {[%clk 0:02:22]}  Bb5 {[%clk 0:01:23]} 21. Nc5 {[%clk 0:02:18]}  Rfd8 {[%clk 0:01:09]} 22. Bf4 {[%clk 0:02:15]}  Rbc8 {[%clk 0:01:08]} 23. Be5 {[%clk 0:02:14]}  Kf7 {[%clk 0:01:04]} 24. a4 {[%clk 0:02:10]}  Bxe5 {[%clk 0:00:51]} 25. Rxe5 {[%clk 0:02:05]}  Rb8 {[%clk 0:00:49]} 26. axb5 {[%clk 0:02:05]}  Rxb5 {[%clk 0:00:50]} 27. Rce1 {[%clk 0:02:05]}  Re8 {[%clk 0:00:50]} 28. h4 {[%clk 0:01:56]}  Rb4 {[%clk 0:00:49]} 29. Rd1 {[%clk 0:01:56]}  Reb8 {[%clk 0:00:46]} 30. g3 {[%clk 0:01:55]}  Rd8 {[%clk 0:00:42]} 31. Kg2 {[%clk 0:01:55]}  a5 {[%clk 0:00:42]} 32. Re2 {[%clk 0:01:53]}  Re8 {[%clk 0:00:35]} 33. Ra2 {[%clk 0:01:49]}  Rb5 {[%clk 0:00:35]} 34. Re1 {[%clk 0:01:43]}  Ra8 {[%clk 0:00:34]} 35. Ra4 {[%clk 0:01:42]}  Ra7 {[%clk 0:00:35]} 36. Kf3 {[%clk 0:01:40]}  Ra8 {[%clk 0:00:33]} 37. Kf4 {[%clk 0:01:41]}  Ra7 {[%clk 0:00:34]} 38. Kg5 {[%clk 0:01:41]}  Kg7 {[%clk 0:00:33]} 39. Ne6+ {[%clk 0:01:41]}  Kf7 {[%clk 0:00:32]} 40. Nd8+ {[%clk 0:01:31]}  Kg7 {[%clk 0:00:32]} 41. Nxc6 {[%clk 0:01:27]}  Rc7 {[%clk 0:00:31]} 42. Rxe7+ {[%clk 0:01:27]}  Rxe7 {[%clk 0:00:31]} 43. Nxe7 {[%clk 0:01:27]}  Rxb3 {[%clk 0:00:30]} 44. Rxa5 {[%clk 0:01:22]}  Rf3 {[%clk 0:00:27]} 45. Rxd5 {[%clk 0:01:14]}  Rxf2 {[%clk 0:00:26]} 46. Rd7 {[%clk 0:01:14]}  h6+ {[%clk 0:00:23]} 47. Kg4 {[%clk 0:01:15]}  Kf6 {[%clk 0:00:22]} 48. Ng8+ {[%clk 0:01:14]}  Ke6 {[%clk 0:00:22]} 49. Re7+ {[%clk 0:01:10]}  Kd6 {[%clk 0:00:22]} 50. Rg7 {[%clk 0:01:10]}  h5+ {[%clk 0:00:19]} 51. Kh3 {[%clk 0:01:10]}  Kd5 {[%clk 0:00:13]} 52. Rxg6 {[%clk 0:01:08]}  Kxd4 {[%clk 0:00:11]} 53. Nf6 {[%clk 0:01:09]}  Rf5 {[%clk 0:00:06]} 54. Rh6 {[%clk 0:01:08]}  Ke3 {[%clk 0:00:05]} 55. Nxh5 {[%clk 0:01:08]}  Kf2 {[%clk 0:00:04]} 56. Rf6 {[%clk 0:01:07]} 1-0


[Site "https://www.chess.com"]

[Event "Titled Tuesday Blitz September 20 Late 2022"]
[White "Melkumyan, Hrant"]
[Black "Noboa Silva, Kevin"]
[WhiteFideId "13302485"]
[BlackFideId "3618471"]
[WhiteElo "2604"]
[BlackElo "2172"]
[Result "1-0"]
[Round "01"]
[TimeControl "180+1"]
[Date "2022.09.20"]
[WhiteClock "0:00:44"]
[BlackClock "0:00:01"]

1. d4 {[%clk 0:02:59]}  Nf6 {[%clk 0:02:57]} 2. c4 {[%clk 0:02:59]}  e6 {[%clk 0:02:57]} 3. Nf3 {[%clk 0:02:59]}  Bb4+ {[%clk 0:02:57]} 4. Bd2 {[%clk 0:02:59]}  a5 {[%clk 0:02:57]} 5. g3 {[%clk 0:02:58]}  b6 {[%clk 0:02:57]} 6. Bg2 {[%clk 0:02:58]}  Bb7 {[%clk 0:02:57]} 7. O-O {[%clk 0:02:57]}  O-O {[%clk 0:02:55]} 8. Bf4 {[%clk 0:02:57]}  Re8 {[%clk 0:02:45]} 9. a3 {[%clk 0:02:56]}  Bf8 {[%clk 0:02:44]} 10. Qc2 {[%clk 0:02:56]}  Be4 {[%clk 0:02:39]} 11. Qd2 {[%clk 0:02:56]}  Bxb1 {[%clk 0:02:30]} 12. Raxb1 {[%clk 0:02:54]}  a4 {[%clk 0:02:30]} 13. Qc2 {[%clk 0:02:52]}  Ra7 {[%clk 0:02:26]} 14. e4 {[%clk 0:02:49]}  d6 {[%clk 0:02:25]} 15. Rfd1 {[%clk 0:02:46]}  Nfd7 {[%clk 0:02:25]} 16. e5 {[%clk 0:02:35]}  h6 {[%clk 0:02:23]} 17. d5 {[%clk 0:02:24]}  g5 {[%clk 0:02:19]} 18. dxe6 {[%clk 0:02:21]}  Rxe6 {[%clk 0:02:14]} 19. Bh3 {[%clk 0:02:14]}  gxf4 {[%clk 0:02:00]} 20. Bxe6 {[%clk 0:02:14]}  fxe6 {[%clk 0:02:01]} 21. Qg6+ {[%clk 0:02:14]}  Kh8 {[%clk 0:02:01]} 22. exd6 {[%clk 0:02:02]}  cxd6 {[%clk 0:01:59]} 23. Qxe6 {[%clk 0:01:55]}  Nc5 {[%clk 0:01:57]} 24. Qd5 {[%clk 0:01:45]}  fxg3 {[%clk 0:01:54]} 25. hxg3 {[%clk 0:01:45]}  Nbd7 {[%clk 0:01:41]} 26. Kg2 {[%clk 0:01:43]}  Nf6 {[%clk 0:01:34]} 27. Qf5 {[%clk 0:01:43]}  Bg7 {[%clk 0:01:31]} 28. Nh4 {[%clk 0:01:30]}  Qd7 {[%clk 0:01:25]} 29. Ng6+ {[%clk 0:01:25]}  Kg8 {[%clk 0:01:15]} 30. Qf3 {[%clk 0:01:25]}  Qb7 {[%clk 0:01:12]} 31. Rxd6 {[%clk 0:01:21]}  Qxf3+ {[%clk 0:01:11]} 32. Kxf3 {[%clk 0:01:22]}  Nfe4 {[%clk 0:01:03]} 33. Rd8+ {[%clk 0:01:16]}  Kh7 {[%clk 0:01:03]} 34. Nf4 {[%clk 0:01:13]}  Bf6 {[%clk 0:00:51]} 35. Rd5 {[%clk 0:01:08]}  Rf7 {[%clk 0:00:45]} 36. Kg2 {[%clk 0:01:03]}  Bg5 {[%clk 0:00:40]} 37. Nh3 {[%clk 0:01:02]}  Bf6 {[%clk 0:00:25]} 38. f3 {[%clk 0:01:00]}  Ng5 {[%clk 0:00:20]} 39. Nf4 {[%clk 0:01:01]}  Re7 {[%clk 0:00:17]} 40. Rh1 {[%clk 0:00:52]}  Kg7 {[%clk 0:00:16]} 41. Nh5+ {[%clk 0:00:51]}  Kf7 {[%clk 0:00:16]} 42. Nxf6 {[%clk 0:00:52]}  Re2+ {[%clk 0:00:12]} 43. Kf1 {[%clk 0:00:52]}  Rxb2 {[%clk 0:00:11]} 44. Rxh6 {[%clk 0:00:52]}  Nxf3 {[%clk 0:00:11]} 45. Ng4 {[%clk 0:00:45]}  Ne4 {[%clk 0:00:10]} 46. Rf5+ {[%clk 0:00:40]}  Kg7 {[%clk 0:00:09]} 47. Rxf3 {[%clk 0:00:40]}  Nd2+ {[%clk 0:00:08]} 48. Kg2 {[%clk 0:00:41]}  Nxf3+ {[%clk 0:00:07]} 49. Kxf3 {[%clk 0:00:42]}  Rb3+ {[%clk 0:00:07]} 50. Kf4 {[%clk 0:00:42]}  Rxa3 {[%clk 0:00:07]} 51. Rxb6 {[%clk 0:00:43]}  Ra1 {[%clk 0:00:07]} 52. Ra6 {[%clk 0:00:42]}  a3 {[%clk 0:00:07]} 53. Ne3 {[%clk 0:00:42]}  a2 {[%clk 0:00:06]} 54. Nf5+ {[%clk 0:00:43]}  Kf7 {[%clk 0:00:06]} 55. Kg5 {[%clk 0:00:44]}  Ke8 {[%clk 0:00:04]} 56. g4 {[%clk 0:00:44]}  Kd8 {[%clk 0:00:04]} 57. c5 {[%clk 0:00:45]}  Kc7 {[%clk 0:00:05]} 58. Ra5 {[%clk 0:00:45]}  Kc6 {[%clk 0:00:05]} 59. Nd4+ {[%clk 0:00:45]}  Kd5 {[%clk 0:00:05]} 60. Nc2 {[%clk 0:00:45]}  Rg1 {[%clk 0:00:01]} 61. Rxa2 {[%clk 0:00:44]}  Kxc5 {[%clk 0:00:01]} 62. Ne3 {[%clk 0:00:44]}  Kd4 {[%clk 0:00:01]} 63. Rg2 {[%clk 0:00:44]} 1-0


[Site "https://www.chess.com"]

[Event "Titled Tuesday Blitz September 20 Late 2022"]
[White "Minko, Dmitry"]
[Black "Kollars, Dmitrij"]
[WhiteFideId "24188468"]
[BlackFideId "12909572"]
[WhiteElo "1950"]
[BlackElo "2584"]
[Result "1/2-1/2"]
[Round "01"]
[TimeControl "180+1"]
[Date "2022.09.20"]
[WhiteClock "0:01:09"]
[BlackClock "0:01:05"]

1. e4 {[%clk 0:02:52]}  c6 {[%clk 0:02:52]} 2. d4 {[%clk 0:02:52]}  d5 {[%clk 0:02:52]} 3. exd5 {[%clk 0:02:53]}  cxd5 {[%clk 0:02:53]} 4. Bd3 {[%clk 0:02:54]}  Nf6 {[%clk 0:02:52]} 5. c3 {[%clk 0:02:53]}  Bg4 {[%clk 0:02:51]} 6. Qb3 {[%clk 0:02:53]}  Qc8 {[%clk 0:02:47]} 7. Bf4 {[%clk 0:02:52]}  Nc6 {[%clk 0:02:42]} 8. Nd2 {[%clk 0:02:52]}  e6 {[%clk 0:02:42]} 9. Ngf3 {[%clk 0:02:53]}  Be7 {[%clk 0:02:29]} 10. O-O {[%clk 0:02:38]}  O-O {[%clk 0:02:28]} 11. h3 {[%clk 0:02:26]}  Bh5 {[%clk 0:02:24]} 12. Ng5 {[%clk 0:02:26]}  Bg6 {[%clk 0:02:10]} 13. Bxg6 {[%clk 0:02:24]}  hxg6 {[%clk 0:02:11]} 14. Ndf3 {[%clk 0:02:24]}  Na5 {[%clk 0:02:05]} 15. Qc2 {[%clk 0:02:17]}  Nc4 {[%clk 0:02:05]} 16. Rae1 {[%clk 0:02:09]}  Nd6 {[%clk 0:01:53]} 17. h4 {[%clk 0:01:38]}  b5 {[%clk 0:01:46]} 18. a3 {[%clk 0:01:34]}  a5 {[%clk 0:01:45]} 19. Ne5 {[%clk 0:01:32]}  Nfe4 {[%clk 0:01:39]} 20. f3 {[%clk 0:01:24]}  Nxg5 {[%clk 0:01:21]} 21. Bxg5 {[%clk 0:01:14]}  Bf6 {[%clk 0:01:11]} 22. Bxf6 {[%clk 0:01:05]}  gxf6 {[%clk 0:01:12]} 23. Nxg6 {[%clk 0:01:06]}  fxg6 {[%clk 0:01:04]} 24. Qxg6+ {[%clk 0:01:06]}  Kh8 {[%clk 0:01:04]} 25. Qh6+ {[%clk 0:01:07]}  Kg8 {[%clk 0:01:04]} 26. Qg6+ {[%clk 0:01:08]}  Kh8 {[%clk 0:01:04]} 27. Qh6+ {[%clk 0:01:09]}  Kg8 {[%clk 0:01:05]} 28. Qg6+ {[%clk 0:01:09]} 1/2-1/2


[Site "https://www.chess.com"]

[Event "Titled Tuesday Blitz September 20 Late 2022"]
[White "Pert, Richard G"]
[Black "Zhigalko, Sergei"]
[WhiteFideId "404748"]
[BlackFideId "13502956"]
[WhiteElo "2441"]
[BlackElo "2662"]
[Result "0-1"]
[Round "01"]
[TimeControl "180+1"]
[Date "2022.09.20"]
[WhiteClock "0:00:08"]
[BlackClock "0:00:05"]

1. d4 {[%clk 0:03:00]}  Nf6 {[%clk 0:02:57]} 2. Bg5 {[%clk 0:02:59]}  d5 {[%clk 0:02:57]} 3. e3 {[%clk 0:02:59]}  Nbd7 {[%clk 0:02:54]} 4. Nf3 {[%clk 0:02:58]}  b6 {[%clk 0:02:54]} 5. c4 {[%clk 0:02:57]}  e6 {[%clk 0:02:52]} 6. cxd5 {[%clk 0:02:55]}  exd5 {[%clk 0:02:53]} 7. Nc3 {[%clk 0:02:55]}  Bb7 {[%clk 0:02:53]} 8. Bd3 {[%clk 0:02:55]}  Be7 {[%clk 0:02:52]} 9. O-O {[%clk 0:02:55]}  O-O {[%clk 0:02:52]} 10. Rc1 {[%clk 0:02:55]}  Ne4 {[%clk 0:02:48]} 11. Bf4 {[%clk 0:02:42]}  c5 {[%clk 0:02:35]} 12. dxc5 {[%clk 0:02:35]}  Ndxc5 {[%clk 0:02:29]} 13. Nd4 {[%clk 0:02:19]}  Bf6 {[%clk 0:02:23]} 14. Nxe4 {[%clk 0:02:08]}  dxe4 {[%clk 0:02:20]} 15. Bb5 {[%clk 0:02:08]}  Rc8 {[%clk 0:02:08]} 16. Nf5 {[%clk 0:01:45]}  Nd3 {[%clk 0:01:53]} 17. Rxc8 {[%clk 0:01:32]}  Bxc8 {[%clk 0:01:52]} 18. Nd6 {[%clk 0:01:17]}  Nxf4 {[%clk 0:01:38]} 19. exf4 {[%clk 0:01:15]}  Bg4 {[%clk 0:01:13]} 20. Qd2 {[%clk 0:01:04]}  Bxb2 {[%clk 0:01:07]} 21. h3 {[%clk 0:01:01]}  Ba3 {[%clk 0:00:39]} 22. Nxe4 {[%clk 0:00:53]}  Bf5 {[%clk 0:00:32]} 23. Qe3 {[%clk 0:00:46]}  Qe7 {[%clk 0:00:29]} 24. Ng3 {[%clk 0:00:41]}  Qxe3 {[%clk 0:00:28]} 25. fxe3 {[%clk 0:00:41]}  Be6 {[%clk 0:00:29]} 26. f5 {[%clk 0:00:39]}  Bd5 {[%clk 0:00:22]} 27. Rd1 {[%clk 0:00:32]}  Ba8 {[%clk 0:00:08]} 28. Kf1 {[%clk 0:00:32]}  Bc5 {[%clk 0:00:05]} 29. e4 {[%clk 0:00:30]}  a5 {[%clk 0:00:02]} 30. a4 {[%clk 0:00:29]}  Be3 {[%clk 0:00:02]} 31. Bc4 {[%clk 0:00:17]}  Bf4 {[%clk 0:00:02]} 32. Ne2 {[%clk 0:00:17]}  Be5 {[%clk 0:00:02]} 33. Bd5 {[%clk 0:00:17]}  Rd8 {[%clk 0:00:03]} 34. Kf2 {[%clk 0:00:16]}  Kf8 {[%clk 0:00:02]} 35. Ke3 {[%clk 0:00:16]}  Ke7 {[%clk 0:00:02]} 36. Rd3 {[%clk 0:00:16]}  Bxd5 {[%clk 0:00:02]} 37. exd5 {[%clk 0:00:16]}  Kd6 {[%clk 0:00:02]} 38. Ke4 {[%clk 0:00:14]}  Re8 {[%clk 0:00:02]} 39. Kf3 {[%clk 0:00:15]}  Rc8 {[%clk 0:00:01]} 40. g4 {[%clk 0:00:14]}  Rc4 {[%clk 0:00:02]} 41. Rb3 {[%clk 0:00:12]}  Rb4 {[%clk 0:00:03]} 42. Rxb4 {[%clk 0:00:10]}  axb4 {[%clk 0:00:03]} 43. Ke4 {[%clk 0:00:10]}  b3 {[%clk 0:00:04]} 44. Kd3 {[%clk 0:00:09]}  Kxd5 {[%clk 0:00:04]} 45. g5 {[%clk 0:00:09]}  b2 {[%clk 0:00:04]} 46. Kc2 {[%clk 0:00:09]}  Ke4 {[%clk 0:00:04]} 47. f6 {[%clk 0:00:08]}  gxf6 {[%clk 0:00:05]} 48. Ng3+ {[%clk 0:00:08]}  Bxg3 {[%clk 0:00:05]} 49. gxf6 {[%clk 0:00:08]}  Be5 {[%clk 0:00:05]} 0-1


[Site "https://www.chess.com"]

[Event "Titled Tuesday Blitz September 20 Late 2022"]
[White "Petrovic, Aleksa"]
[Black "Shimanov, Aleksandr"]
[WhiteFideId "967629"]
[BlackFideId "4198603"]
[WhiteElo "2262"]
[BlackElo "2605"]
[Result "0-1"]
[Round "01"]
[TimeControl "180+1"]
[Date "2022.09.20"]
[WhiteClock "0:00:41"]
[BlackClock "0:02:18"]

1. d4 {[%clk 0:02:54]}  d5 {[%clk 0:02:58]} 2. c4 {[%clk 0:02:54]}  e6 {[%clk 0:02:58]} 3. Nf3 {[%clk 0:02:54]}  Nf6 {[%clk 0:02:57]} 4. Nc3 {[%clk 0:02:54]}  dxc4 {[%clk 0:02:55]} 5. e3 {[%clk 0:02:53]}  a6 {[%clk 0:02:55]} 6. a4 {[%clk 0:02:53]}  b6 {[%clk 0:02:54]} 7. Bxc4 {[%clk 0:02:53]}  Bb7 {[%clk 0:02:55]} 8. O-O {[%clk 0:02:52]}  Bb4 {[%clk 0:02:55]} 9. Qe2 {[%clk 0:02:51]}  O-O {[%clk 0:02:55]} 10. Bd3 {[%clk 0:02:51]}  c5 {[%clk 0:02:42]} 11. dxc5 {[%clk 0:02:47]}  Bxc5 {[%clk 0:02:43]} 12. Rd1 {[%clk 0:02:45]}  Qe7 {[%clk 0:02:43]} 13. b3 {[%clk 0:02:41]}  Nc6 {[%clk 0:02:42]} 14. Bb2 {[%clk 0:02:40]}  Nb4 {[%clk 0:02:43]} 15. Bc4 {[%clk 0:02:27]}  e5 {[%clk 0:02:37]} 16. Nxe5 {[%clk 0:01:37]}  Qxe5 {[%clk 0:02:35]} 17. Nd5 {[%clk 0:01:37]}  Qg5 {[%clk 0:02:23]} 18. f4 {[%clk 0:01:01]}  Qg6 {[%clk 0:02:22]} 19. f5 {[%clk 0:00:41]}  Qg5 {[%clk 0:02:18]} 0-1


[Site "https://www.chess.com"]

[Event "Titled Tuesday Blitz September 20 Late 2022"]
[White "Rasulov, Vugar"]
[Black "Cukrowski, Filip"]
[WhiteFideId "13402390"]
[BlackFideId "1171097"]
[WhiteElo "2509"]
[BlackElo "2093"]
[Result "0-1"]
[Round "01"]
[TimeControl "180+1"]
[Date "2022.09.20"]
[WhiteClock "0:00:30"]
[BlackClock "0:00:27"]

1. c4 {[%clk 0:02:59]}  Nf6 {[%clk 0:03:00]} 2. Nc3 {[%clk 0:02:59]}  e5 {[%clk 0:03:00]} 3. g3 {[%clk 0:02:58]}  d5 {[%clk 0:03:00]} 4. cxd5 {[%clk 0:02:59]}  Nxd5 {[%clk 0:03:01]} 5. Bg2 {[%clk 0:03:00]}  Nb6 {[%clk 0:03:01]} 6. Nf3 {[%clk 0:03:00]}  Nc6 {[%clk 0:03:01]} 7. O-O {[%clk 0:03:01]}  Be7 {[%clk 0:03:01]} 8. d3 {[%clk 0:03:01]}  O-O {[%clk 0:03:01]} 9. Be3 {[%clk 0:03:00]}  Be6 {[%clk 0:03:00]} 10. a3 {[%clk 0:02:59]}  f6 {[%clk 0:02:58]} 11. Rc1 {[%clk 0:02:58]}  Qd7 {[%clk 0:02:55]} 12. Ne4 {[%clk 0:02:54]}  Bh3 {[%clk 0:02:43]} 13. b4 {[%clk 0:02:54]}  Bxg2 {[%clk 0:02:43]} 14. Kxg2 {[%clk 0:02:54]}  Nd5 {[%clk 0:02:41]} 15. Bc5 {[%clk 0:02:52]}  a6 {[%clk 0:02:33]} 16. Qb3 {[%clk 0:02:48]}  Kh8 {[%clk 0:02:31]} 17. Bxe7 {[%clk 0:02:47]}  Ndxe7 {[%clk 0:02:29]} 18. Nc5 {[%clk 0:02:47]}  Qc8 {[%clk 0:02:24]} 19. Qe6 {[%clk 0:02:42]}  b6 {[%clk 0:02:04]} 20. Qxc8 {[%clk 0:02:40]}  Rfxc8 {[%clk 0:02:02]} 21. Nb3 {[%clk 0:02:32]}  a5 {[%clk 0:01:57]} 22. b5 {[%clk 0:02:32]}  a4 {[%clk 0:01:57]} 23. Nbd2 {[%clk 0:02:29]}  Na5 {[%clk 0:01:53]} 24. d4 {[%clk 0:02:26]}  exd4 {[%clk 0:01:49]} 25. Nxd4 {[%clk 0:02:26]}  Nb7 {[%clk 0:01:49]} 26. Ne6 {[%clk 0:02:21]}  Nd6 {[%clk 0:01:41]} 27. Nxc7 {[%clk 0:02:03]}  Ra7 {[%clk 0:01:40]} 28. Ne6 {[%clk 0:02:02]}  Nxb5 {[%clk 0:01:38]} 29. Rxc8+ {[%clk 0:01:59]}  Nxc8 {[%clk 0:01:38]} 30. Rc1 {[%clk 0:01:51]}  Ncd6 {[%clk 0:01:33]} 31. Nc4 {[%clk 0:01:51]}  Nxc4 {[%clk 0:01:11]} 32. Rxc4 {[%clk 0:01:52]}  Kg8 {[%clk 0:01:11]} 33. Nd4 {[%clk 0:01:17]}  Nxa3 {[%clk 0:01:07]} 34. Rb4 {[%clk 0:01:11]}  b5 {[%clk 0:01:06]} 35. Kf3 {[%clk 0:01:08]}  Rc7 {[%clk 0:00:58]} 36. Rb2 {[%clk 0:00:54]}  Rb7 {[%clk 0:00:49]} 37. Rb4 {[%clk 0:00:50]}  Rc7 {[%clk 0:00:47]} 38. Rb2 {[%clk 0:00:47]}  Rb7 {[%clk 0:00:41]} 39. Nc6 {[%clk 0:00:38]}  Nc4 {[%clk 0:00:39]} 40. Rb4 {[%clk 0:00:38]}  a3 {[%clk 0:00:36]} 41. Rb1 {[%clk 0:00:30]}  Nd2+ {[%clk 0:00:26]} 42. Ke3 {[%clk 0:00:30]}  Nxb1 {[%clk 0:00:27]} 0-1


[Site "https://www.chess.com"]

[Event "Titled Tuesday Blitz September 20 Late 2022"]
[White "Rustemov, Alexander"]
[Black "Sztokbant, Bernardo Vainzoff"]
[WhiteFideId "4119002"]
[BlackFideId "2115956"]
[WhiteElo "2841"]
[BlackElo "2172"]
[Result "1-0"]
[Round "01"]
[TimeControl "180+1"]
[Date "2022.09.20"]
[WhiteClock "0:00:36"]
[BlackClock "0:00:10"]

1. d4 {[%clk 0:03:00]}  d5 {[%clk 0:03:00]} 2. c4 {[%clk 0:02:59]}  dxc4 {[%clk 0:03:00]} 3. Nf3 {[%clk 0:02:59]}  Nf6 {[%clk 0:03:00]} 4. e3 {[%clk 0:03:00]}  e6 {[%clk 0:03:01]} 5. Bxc4 {[%clk 0:03:00]}  c5 {[%clk 0:03:01]} 6. O-O {[%clk 0:03:00]}  Nc6 {[%clk 0:03:00]} 7. Qe2 {[%clk 0:02:58]}  cxd4 {[%clk 0:02:58]} 8. Rd1 {[%clk 0:02:58]}  Be7 {[%clk 0:02:53]} 9. exd4 {[%clk 0:02:58]}  O-O {[%clk 0:02:53]} 10. Nc3 {[%clk 0:02:57]}  Nb4 {[%clk 0:02:51]} 11. Bg5 {[%clk 0:02:55]}  b6 {[%clk 0:02:47]} 12. Ne5 {[%clk 0:02:50]}  Bb7 {[%clk 0:02:45]} 13. Nxf7 {[%clk 0:02:44]}  Rxf7 {[%clk 0:02:46]} 14. Bxe6 {[%clk 0:02:37]}  Qf8 {[%clk 0:02:32]} 15. Re1 {[%clk 0:02:11]}  Re8 {[%clk 0:02:14]} 16. Bxf6 {[%clk 0:02:09]}  gxf6 {[%clk 0:01:59]} 17. a3 {[%clk 0:01:59]}  Nc6 {[%clk 0:01:59]} 18. Rad1 {[%clk 0:01:56]}  Kh8 {[%clk 0:01:57]} 19. Bxf7 {[%clk 0:01:55]}  Qxf7 {[%clk 0:01:58]} 20. d5 {[%clk 0:01:55]}  Ne5 {[%clk 0:01:58]} 21. f4 {[%clk 0:01:50]}  Ng6 {[%clk 0:01:51]} 22. d6 {[%clk 0:01:46]}  Nxf4 {[%clk 0:01:39]} 23. Qxe7 {[%clk 0:01:46]}  Rxe7 {[%clk 0:01:38]} 24. dxe7 {[%clk 0:01:46]}  Bc6 {[%clk 0:01:36]} 25. Rd8+ {[%clk 0:01:41]}  Kg7 {[%clk 0:01:36]} 26. e8=Q {[%clk 0:01:36]}  Bxe8 {[%clk 0:01:36]} 27. Rdxe8 {[%clk 0:01:36]}  Kh6 {[%clk 0:01:24]} 28. g3 {[%clk 0:01:33]}  Nd3 {[%clk 0:01:12]} 29. R1e6 {[%clk 0:01:22]}  Nc5 {[%clk 0:00:58]} 30. Re2 {[%clk 0:01:21]}  Qd7 {[%clk 0:00:50]} 31. R8e3 {[%clk 0:01:18]}  Qd4 {[%clk 0:00:39]} 32. Kg2 {[%clk 0:01:17]}  a5 {[%clk 0:00:36]} 33. Ne4 {[%clk 0:01:14]}  Qd5 {[%clk 0:00:27]} 34. Kg1 {[%clk 0:01:10]}  Nxe4 {[%clk 0:00:22]} 35. Rxe4 {[%clk 0:01:10]}  Kg6 {[%clk 0:00:20]} 36. Rg4+ {[%clk 0:01:01]}  Kf7 {[%clk 0:00:20]} 37. Rf4 {[%clk 0:00:59]}  Qc5+ {[%clk 0:00:18]} 38. Ref2 {[%clk 0:00:59]}  Kg7 {[%clk 0:00:15]} 39. Rxf6 {[%clk 0:00:58]}  Qe3 {[%clk 0:00:16]} 40. Rf7+ {[%clk 0:00:55]}  Kg6 {[%clk 0:00:15]} 41. Rf6+ {[%clk 0:00:54]}  Kg7 {[%clk 0:00:16]} 42. Rf3 {[%clk 0:00:54]}  Qe1+ {[%clk 0:00:14]} 43. Kg2 {[%clk 0:00:54]}  Qe4 {[%clk 0:00:15]} 44. h3 {[%clk 0:00:54]}  Qd5 {[%clk 0:00:14]} 45. Kh2 {[%clk 0:00:55]}  Qe4 {[%clk 0:00:13]} 46. Rf4 {[%clk 0:00:54]}  Qe3 {[%clk 0:00:12]} 47. Rg4+ {[%clk 0:00:50]}  Kh6 {[%clk 0:00:11]} 48. Rf6+ {[%clk 0:00:39]}  Kh5 {[%clk 0:00:12]} 49. Rgf4 {[%clk 0:00:36]}  Qd2+ {[%clk 0:00:09]} 50. Rf2 {[%clk 0:00:36]}  Qd4 {[%clk 0:00:10]} 51. R2f5# {[%clk 0:00:36]} 1-0


[Site "https://www.chess.com"]